[Event "Live Chess"]
[Site "Chess.com"]
[Date "2021.03.17"]
[Round "4"]
[White "Tirantes"]
[Black "GGuseinov"]
[Result "0-1"]
[CurrentPosition "4r3/5pk1/8/6p1/2P5/6P1/2RR1P1K/1q5B w - -"]
[Timezone "UTC"]
[ECO "E60"]
[ECOUrl "https://www.chess.com/openings/Kings-Indian-Defense-Fianchetto-Variation-4...O-O"]
[UTCDate "2021.03.17"]
[UTCTime "03:00:33"]
[WhiteElo "2469"]
[BlackElo "2738"]
[TimeControl "2100+2"]
[Termination "GGuseinov won by resignation"]
[StartTime "03:00:33"]
[EndDate "2021.03.17"]
[EndTime "04:02:39"]
[Link "https://www.chess.com/game/live/9689086955"]

1. d4 {[%clk 0:34:36]} 1... Nf6 {[%clk 0:34:58.5]} 2. c4 {[%clk 0:34:31.4]} 2... g6 {[%clk 0:34:59.3]} 3. g3 {[%clk 0:34:20.5]} 3... Bg7 {[%clk 0:34:59.6]} 4. Bg2 {[%clk 0:34:17.6]} 4... O-O {[%clk 0:35:00.4]} 5. Nc3 {[%clk 0:34:15.5]} 5... c5 {[%clk 0:34:22.9]} 6. Nf3 {[%clk 0:33:21.4]} 6... cxd4 {[%clk 0:33:25.8]} 7. Nxd4 {[%clk 0:33:20.1]} 7... Nc6 {[%clk 0:32:58.9]} 8. O-O {[%clk 0:33:14.8]} 8... Qa5 {[%clk 0:32:55.2]} 9. Nc2 {[%clk 0:32:26.9]} 9... Qh5 {[%clk 0:32:17.9]} 10. e4 {[%clk 0:31:55.9]} 10... Qxd1 {[%clk 0:31:37.4]} 11. Rxd1 {[%clk 0:31:53.9]} 11... d6 {[%clk 0:31:39.3]} 12. h3 {[%clk 0:30:18]} 12... Be6 {[%clk 0:31:08.1]} 13. b3 {[%clk 0:29:45.9]} 13... Nd7 {[%clk 0:30:39.9]} 14. Bb2 {[%clk 0:29:31.8]} 14... Nc5 {[%clk 0:30:40.4]} 15. Rab1 {[%clk 0:29:01.2]} 15... a5 {[%clk 0:29:11.7]} 16. Nd5 {[%clk 0:28:19.9]} 16... Bxd5 {[%clk 0:28:53.8]} 17. Rxd5 {[%clk 0:25:01.8]} 17... Nb4 {[%clk 0:27:53.3]} 18. Nxb4 {[%clk 0:24:48.7]} 18... axb4 {[%clk 0:27:55.2]} 19. Bxg7 {[%clk 0:24:37]} 19... Kxg7 {[%clk 0:27:55]} 20. e5 {[%clk 0:24:23.6]} 20... Rxa2 {[%clk 0:26:37.2]} 21. exd6 {[%clk 0:24:20.3]} 21... exd6 {[%clk 0:26:39.1]} 22. Rxd6 {[%clk 0:24:18.6]} 22... Ra6 {[%clk 0:26:17.7]} 23. Rbd1 {[%clk 0:23:15.7]} 23... Rc8 {[%clk 0:22:30.2]} 24. h4 {[%clk 0:21:22.3]} 24... Ra3 {[%clk 0:18:16.9]} 25. Rb6 {[%clk 0:20:02.6]} 25... Rxb3 {[%clk 0:18:03.4]} 26. Rb5 {[%clk 0:19:00.9]} 26... Rc7 {[%clk 0:16:35.6]} 27. Rd5 {[%clk 0:16:59.2]} 27... Na4 {[%clk 0:16:29]} 28. Rd2 {[%clk 0:16:09.5]} 28... Rb1+ {[%clk 0:14:48.6]} 29. Kh2 {[%clk 0:16:01.6]} 29... b3 {[%clk 0:14:49.7]} 30. Bxb7 {[%clk 0:14:37.9]} 30... b2 {[%clk 0:13:36.6]} 31. Bd5 {[%clk 0:12:35]} 31... Re7 {[%clk 0:12:41.3]} 32. Rb4 {[%clk 0:11:02]} 32... h6 {[%clk 0:10:42.6]} 33. Rxa4 {[%clk 0:09:26]} 33... Rh1+ {[%clk 0:10:39.9]} 34. Bxh1 {[%clk 0:09:17.4]} 34... b1=Q {[%clk 0:10:40]} 35. Raa2 {[%clk 0:06:41.4]} 35... g5 {[%clk 0:10:36.3]} 36. hxg5 {[%clk 0:06:09.8]} 36... hxg5 {[%clk 0:10:18.1]} 37. Rac2 {[%clk 0:05:17.2]} 37... Re8 {[%clk 0:10:10.9]} 0-1

[Event "Live Chess"]
[Site "Chess.com"]
[Date "2021.03.17"]
[Round "4"]
[White "kingandqueen2017"]
[Black "BrianEscalante"]
[Result "0-1"]
[CurrentPosition "2r2rk1/4q1pp/R3p3/4Pp2/2nP1P2/2p5/1p3QPP/2B2RK1 w - -"]
[Timezone "UTC"]
[ECO "D30"]
[ECOUrl "https://www.chess.com/openings/Queens-Gambit-Declined"]
[UTCDate "2021.03.17"]
[UTCTime "03:00:35"]
[WhiteElo "2344"]
[BlackElo "2544"]
[TimeControl "2100+2"]
[Termination "BrianEscalante won by resignation"]
[StartTime "03:00:35"]
[EndDate "2021.03.17"]
[EndTime "03:41:40"]
[Link "https://www.chess.com/game/live/9689088061"]

1. d4 {[%clk 0:35:01.5]} 1... e6 {[%clk 0:32:59.7]} 2. c4 {[%clk 0:34:39.7]} 2... d5 {[%clk 0:32:49.5]} 3. Nc3 {[%clk 0:34:30.7]} 3... c6 {[%clk 0:32:39.8]} 4. e3 {[%clk 0:34:29.6]} 4... f5 {[%clk 0:32:25.6]} 5. f4 {[%clk 0:34:29.5]} 5... Nf6 {[%clk 0:32:02.2]} 6. Nf3 {[%clk 0:34:29.6]} 6... Bd6 {[%clk 0:31:22]} 7. Bd3 {[%clk 0:33:56.4]} 7... O-O {[%clk 0:30:46.6]} 8. O-O {[%clk 0:33:50.2]} 8... dxc4 {[%clk 0:29:44.1]} 9. Bxc4 {[%clk 0:33:46.5]} 9... b5 {[%clk 0:29:46]} 10. Bb3 {[%clk 0:32:56.7]} 10... a5 {[%clk 0:29:29.5]} 11. a4 {[%clk 0:32:43.5]} 11... b4 {[%clk 0:29:22.7]} 12. Ne2 {[%clk 0:32:13.3]} 12... Nd5 {[%clk 0:27:05.9]} 13. Bd2 {[%clk 0:30:44.4]} 13... Nd7 {[%clk 0:26:56.8]} 14. Rc1 {[%clk 0:29:23.5]} 14... Bb7 {[%clk 0:26:52.2]} 15. Qe1 {[%clk 0:25:48.4]} 15... Rc8 {[%clk 0:25:07]} 16. Qf2 {[%clk 0:25:12.1]} 16... Qe7 {[%clk 0:23:28]} 17. Ne5 {[%clk 0:25:09.9]} 17... c5 {[%clk 0:21:50.2]} 18. Nd3 {[%clk 0:24:06.5]} 18... Ba6 {[%clk 0:20:52.9]} 19. Bc4 {[%clk 0:22:28.3]} 19... Bxc4 {[%clk 0:18:02.5]} 20. Rxc4 {[%clk 0:22:27.7]} 20... N7b6 {[%clk 0:17:55.2]} 21. Rcc1 {[%clk 0:21:14.7]} 21... c4 {[%clk 0:17:24.8]} 22. Ne5 {[%clk 0:21:00.7]} 22... Bxe5 {[%clk 0:17:06.2]} 23. fxe5 {[%clk 0:20:58.3]} 23... Nxa4 {[%clk 0:17:06.7]} 24. Ra1 {[%clk 0:19:47.1]} 24... Nxb2 {[%clk 0:17:03.3]} 25. Rxa5 {[%clk 0:19:46.5]} 25... c3 {[%clk 0:16:57]} 26. Bc1 {[%clk 0:18:52.5]} 26... Nc4 {[%clk 0:14:42.8]} 27. Ra6 {[%clk 0:18:33]} 27... b3 {[%clk 0:14:33.4]} 28. Nf4 {[%clk 0:17:13.9]} 28... Nxf4 {[%clk 0:14:04.7]} 29. exf4 {[%clk 0:17:10.3]} 29... b2 {[%clk 0:14:05.7]} 0-1

[Event "Live Chess"]
[Site "Chess.com"]
[Date "2021.03.17"]
[Round "4"]
[White "ecwinslow"]
[Black "josiwales"]
[Result "0-1"]
[CurrentPosition "8/3Q1p1k/5rp1/7p/4K3/6rP/8/8 w - -"]
[Timezone "UTC"]
[ECO "E15"]
[ECOUrl "https://www.chess.com/openings/Queens-Indian-Defense-Fianchetto-Traditional-Line-5.Bg2"]
[UTCDate "2021.03.17"]
[UTCTime "03:00:31"]
[WhiteElo "2278"]
[BlackElo "2505"]
[TimeControl "2100+2"]
[Termination "josiwales won by resignation"]
[StartTime "03:00:31"]
[EndDate "2021.03.17"]
[EndTime "04:05:40"]
[Link "https://www.chess.com/game/live/9689089037"]

1. d4 {[%clk 0:34:56.8]} 1... Nf6 {[%clk 0:34:54.7]} 2. c4 {[%clk 0:34:15.6]} 2... e6 {[%clk 0:34:40]} 3. Nf3 {[%clk 0:34:01.4]} 3... b6 {[%clk 0:34:28.1]} 4. g3 {[%clk 0:31:26.2]} 4... Bb7 {[%clk 0:33:55.4]} 5. Bg2 {[%clk 0:31:24.8]} 5... d5 {[%clk 0:33:47]} 6. Ne5 {[%clk 0:28:56.6]} 6... c6 {[%clk 0:33:33.3]} 7. cxd5 {[%clk 0:27:50]} 7... cxd5 {[%clk 0:33:02.9]} 8. O-O {[%clk 0:27:44.7]} 8... Bd6 {[%clk 0:32:39.6]} 9. Nc3 {[%clk 0:26:46]} 9... O-O {[%clk 0:32:25.3]} 10. Bf4 {[%clk 0:22:50.4]} 10... Nc6 {[%clk 0:31:14.2]} 11. e3 {[%clk 0:22:27.8]} 11... Bxe5 {[%clk 0:29:48.6]} 12. Bxe5 {[%clk 0:20:05.7]} 12... Nxe5 {[%clk 0:29:31.7]} 13. dxe5 {[%clk 0:20:06]} 13... Nd7 {[%clk 0:29:33]} 14. f4 {[%clk 0:19:08.9]} 14... Ba6 {[%clk 0:28:22.9]} 15. Rf2 {[%clk 0:18:51.7]} 15... b5 {[%clk 0:26:54.8]} 16. Rd2 {[%clk 0:14:49]} 16... Qb6 {[%clk 0:26:32.7]} 17. Rd4 {[%clk 0:13:07.8]} 17... Rac8 {[%clk 0:26:28.1]} 18. Qd2 {[%clk 0:11:31.5]} 18... Nb8 {[%clk 0:23:58.3]} 19. Bxd5 {[%clk 0:08:53.1]} 19... exd5 {[%clk 0:23:33.9]} 20. Nxd5 {[%clk 0:08:49.8]} 20... Qe6 {[%clk 0:23:11.3]} 21. f5 {[%clk 0:06:17.3]} 21... Qxe5 {[%clk 0:22:47.7]} 22. f6 {[%clk 0:06:16.1]} 22... Nc6 {[%clk 0:20:24.3]} 23. Rg4 {[%clk 0:04:56]} 23... g6 {[%clk 0:20:21.9]} 24. Rd1 {[%clk 0:04:27]} 24... h5 {[%clk 0:18:16.1]} 25. Rf4 {[%clk 0:03:43]} 25... Rcd8 {[%clk 0:17:39]} 26. e4 {[%clk 0:03:35.8]} 26... Kh7 {[%clk 0:16:10.8]} 27. Qe3 {[%clk 0:02:19.1]} 27... Nb4 {[%clk 0:13:30.4]} 28. Rf5 {[%clk 0:01:58.8]} 28... Nxd5 {[%clk 0:12:52.4]} 29. Rxd5 {[%clk 0:01:55.5]} 29... Rxd5 {[%clk 0:12:45.5]} 30. Rxe5 {[%clk 0:01:55.2]} 30... Rxe5 {[%clk 0:12:46.7]} 31. Qa3 {[%clk 0:01:54.9]} 31... Rfe8 {[%clk 0:11:47.3]} 32. Qxa6 {[%clk 0:01:52.7]} 32... R8e6 {[%clk 0:11:43.2]} 33. Qxa7 {[%clk 0:01:48.7]} 33... Rxf6 {[%clk 0:11:43.5]} 34. Qd4 {[%clk 0:01:38.6]} 34... Rfe6 {[%clk 0:11:42.5]} 35. Kf2 {[%clk 0:01:27.4]} 35... Rxe4 {[%clk 0:11:28.2]} 36. Qd3 {[%clk 0:01:11]} 36... R4e5 {[%clk 0:11:03.7]} 37. a3 {[%clk 0:01:09.2]} 37... Kh6 {[%clk 0:10:39.5]} 38. b3 {[%clk 0:01:08.4]} 38... Rf5+ {[%clk 0:10:15.8]} 39. Kg2 {[%clk 0:01:08.9]} 39... Kh7 {[%clk 0:09:59.9]} 40. a4 {[%clk 0:01:08.9]} 40... bxa4 {[%clk 0:09:55]} 41. bxa4 {[%clk 0:01:09.7]} 41... Rfe5 {[%clk 0:09:11.8]} 42. Kf2 {[%clk 0:00:59.8]} 42... Re4 {[%clk 0:08:23]} 43. a5 {[%clk 0:00:56.6]} 43... R4e5 {[%clk 0:08:06.6]} 44. a6 {[%clk 0:00:49.4]} 44... Ra5 {[%clk 0:08:06.6]} 45. Qd7 {[%clk 0:00:42]} 45... Rf6+ {[%clk 0:08:05.6]} 46. Ke3 {[%clk 0:00:42.6]} 46... Raxa6 {[%clk 0:08:03.5]} 47. h3 {[%clk 0:00:42.1]} 47... Ra3+ {[%clk 0:08:01.1]} 48. Ke4 {[%clk 0:00:43.3]} 48... Rxg3 {[%clk 0:07:55.2]} 0-1

[Event "Live Chess"]
[Site "Chess.com"]
[Date "2021.03.17"]
[Round "4"]
[White "KyronGriffith"]
[Black "TitanChess666"]
[Result "1-0"]
[CurrentPosition "6k1/4p3/3pP3/3P4/2P5/2Q5/6PK/8 b - -"]
[Timezone "UTC"]
[ECO "A45"]
[ECOUrl "https://www.chess.com/openings/Trompowsky-Attack-2...c5-3.d5"]
[UTCDate "2021.03.17"]
[UTCTime "03:00:40"]
[WhiteElo "2500"]
[BlackElo "2149"]
[TimeControl "2100+2"]
[Termination "KyronGriffith won by resignation"]
[StartTime "03:00:40"]
[EndDate "2021.03.17"]
[EndTime "04:14:30"]
[Link "https://www.chess.com/game/live/9689089439"]

1. d4 {[%clk 0:34:59.9]} 1... Nf6 {[%clk 0:34:59.3]} 2. Bg5 {[%clk 0:34:57.8]} 2... c5 {[%clk 0:34:47.9]} 3. d5 {[%clk 0:34:52.2]} 3... d6 {[%clk 0:34:43.1]} 4. Nc3 {[%clk 0:34:17.6]} 4... g6 {[%clk 0:34:43.3]} 5. e4 {[%clk 0:32:52.2]} 5... Bg7 {[%clk 0:34:41.2]} 6. Bb5+ {[%clk 0:32:22.9]} 6... Bd7 {[%clk 0:34:31.8]} 7. a4 {[%clk 0:30:57.5]} 7... Qa5 {[%clk 0:33:15.8]} 8. Bd2 {[%clk 0:30:49.5]} 8... Qc7 {[%clk 0:32:29.6]} 9. Nf3 {[%clk 0:30:05.6]} 9... a6 {[%clk 0:32:26.9]} 10. Be2 {[%clk 0:30:01.6]} 10... Bg4 {[%clk 0:32:27.6]} 11. O-O {[%clk 0:29:29.2]} 11... Bxf3 {[%clk 0:32:26.7]} 12. Bxf3 {[%clk 0:29:18.6]} 12... Nbd7 {[%clk 0:32:13.9]} 13. Be2 {[%clk 0:28:27.2]} 13... O-O {[%clk 0:31:47.4]} 14. Be3 {[%clk 0:27:22.2]} 14... Rab8 {[%clk 0:28:50.3]} 15. f3 {[%clk 0:26:50.4]} 15... c4 {[%clk 0:26:21.9]} 16. Qd2 {[%clk 0:25:57.1]} 16... Rfc8 {[%clk 0:24:14.4]} 17. a5 {[%clk 0:21:27.8]} 17... Nc5 {[%clk 0:23:08.3]} 18. Na4 {[%clk 0:16:15.1]} 18... Nfd7 {[%clk 0:16:06.4]} 19. Qc1 {[%clk 0:07:59.8]} 19... b5 {[%clk 0:05:03.8]} 20. axb6 {[%clk 0:07:59.2]} 20... Qb7 {[%clk 0:04:24.7]} 21. Kh1 {[%clk 0:05:17.7]} 21... Nxa4 {[%clk 0:03:49.3]} 22. Rxa4 {[%clk 0:05:19.6]} 22... Nxb6 {[%clk 0:03:49.7]} 23. Rb4 {[%clk 0:04:34.1]} 23... Qc7 {[%clk 0:03:22.2]} 24. Bxb6 {[%clk 0:04:33.1]} 24... Rxb6 {[%clk 0:03:23]} 25. Rxc4 {[%clk 0:04:34.7]} 25... Qb7 {[%clk 0:03:20.9]} 26. Rxc8+ {[%clk 0:04:35.9]} 26... Qxc8 {[%clk 0:03:22.1]} 27. b3 {[%clk 0:04:36.8]} 27... Bc3 {[%clk 0:03:03.8]} 28. f4 {[%clk 0:04:00.5]} 28... Rb4 {[%clk 0:02:45.9]} 29. Bd3 {[%clk 0:03:59.4]} 29... a5 {[%clk 0:02:26.5]} 30. Qe3 {[%clk 0:03:35.6]} 30... a4 {[%clk 0:02:12.7]} 31. bxa4 {[%clk 0:03:37.5]} 31... Rxa4 {[%clk 0:02:12.6]} 32. e5 {[%clk 0:03:30.2]} 32... Ra1 {[%clk 0:02:06.4]} 33. Rxa1 {[%clk 0:02:45]} 33... Bxa1 {[%clk 0:02:07.2]} 34. e6 {[%clk 0:02:45.5]} 34... f6 {[%clk 0:01:57.9]} 35. h4 {[%clk 0:02:11.3]} 35... Bc3 {[%clk 0:01:28.5]} 36. h5 {[%clk 0:02:02.5]} 36... Kg7 {[%clk 0:00:55.4]} 37. Qa7 {[%clk 0:01:49]} 37... Qf8 {[%clk 0:00:33.8]} 38. Qe3 {[%clk 0:01:11.4]} 38... f5 {[%clk 0:00:21.5]} 39. Bxf5 {[%clk 0:00:50.2]} 39... Qxf5 {[%clk 0:00:20.7]} 40. Qxc3+ {[%clk 0:00:51.3]} 40... Kg8 {[%clk 0:00:20.5]} 41. h6 {[%clk 0:00:35.2]} 41... Qh5+ {[%clk 0:00:17.6]} 42. Kg1 {[%clk 0:00:36.8]} 42... Qxh6 {[%clk 0:00:18.8]} 43. Qd4 {[%clk 0:00:19.1]} 43... Qf8 {[%clk 0:00:11.4]} 44. c4 {[%clk 0:00:16]} 44... Qb8 {[%clk 0:00:09.9]} 45. Kh2 {[%clk 0:00:14.5]} 45... h5 {[%clk 0:00:09.1]} 46. f5 {[%clk 0:00:12.8]} 46... gxf5 {[%clk 0:00:06.9]} 47. Qh4 {[%clk 0:00:14.3]} 47... Qf8 {[%clk 0:00:07.1]} 48. Qxh5 {[%clk 0:00:07.7]} 48... Qg7 {[%clk 0:00:08.6]} 49. Qe8+ {[%clk 0:00:07.3]} 49... Kh7 {[%clk 0:00:09.5]} 50. Qh5+ {[%clk 0:00:08.6]} 50... Kg8 {[%clk 0:00:10.5]} 51. Qxf5 {[%clk 0:00:08.6]} 51... Qh6+ {[%clk 0:00:11.2]} 52. Kg3 {[%clk 0:00:09.2]} 52... Qe3+ {[%clk 0:00:10.3]} 53. Qf3 {[%clk 0:00:10.8]} 53... Qe1+ {[%clk 0:00:10]} 54. Kh2 {[%clk 0:00:09.1]} 54... Qc3 {[%clk 0:00:07.7]} 55. Qxc3 {[%clk 0:00:09.7]} 1-0

[Event "Live Chess"]
[Site "Chess.com"]
[Date "2021.03.17"]
[Round "4"]
[White "FlightsOfFancy"]
[Black "qing29"]
[Result "1-0"]
[CurrentPosition "8/8/2P2ppk/1N6/8/1PR3KP/2r5/8 b - -"]
[Timezone "UTC"]
[ECO "B04"]
[ECOUrl "https://www.chess.com/openings/Alekhines-Defense-Modern-Larsen-Variation-5.Nxe5"]
[UTCDate "2021.03.17"]
[UTCTime "03:00:37"]
[WhiteElo "2127"]
[BlackElo "2082"]
[TimeControl "2100+2"]
[Termination "FlightsOfFancy won by resignation"]
[StartTime "03:00:37"]
[EndDate "2021.03.17"]
[EndTime "04:11:55"]
[Link "https://www.chess.com/game/live/9689089735"]

1. e4 {[%clk 0:34:30.8]} 1... Nf6 {[%clk 0:34:54.3]} 2. e5 {[%clk 0:34:28.7]} 2... Nd5 {[%clk 0:34:53.2]} 3. d4 {[%clk 0:34:28.8]} 3... d6 {[%clk 0:34:53.7]} 4. Nf3 {[%clk 0:32:24.9]} 4... dxe5 {[%clk 0:34:53.6]} 5. Nxe5 {[%clk 0:31:52.9]} 5... c6 {[%clk 0:34:43.5]} 6. Be2 {[%clk 0:31:39.9]} 6... Bf5 {[%clk 0:34:38.3]} 7. O-O {[%clk 0:31:12.7]} 7... e6 {[%clk 0:34:36.8]} 8. c4 {[%clk 0:28:54.4]} 8... Nb6 {[%clk 0:34:21.6]} 9. Nc3 {[%clk 0:28:33.1]} 9... Be7 {[%clk 0:33:45.2]} 10. Bf4 {[%clk 0:27:15.7]} 10... O-O {[%clk 0:33:33.2]} 11. h3 {[%clk 0:25:55.4]} 11... N8d7 {[%clk 0:33:27.2]} 12. Nf3 {[%clk 0:25:48.2]} 12... Nf6 {[%clk 0:33:02.3]} 13. g4 {[%clk 0:25:44.1]} 13... Bg6 {[%clk 0:32:54.7]} 14. Ne5 {[%clk 0:25:41]} 14... Nfd7 {[%clk 0:32:08.7]} 15. Nxg6 {[%clk 0:24:47.9]} 15... hxg6 {[%clk 0:31:54.7]} 16. Qd2 {[%clk 0:23:27.6]} 16... Nf6 {[%clk 0:30:38.9]} 17. Rad1 {[%clk 0:22:40.8]} 17... Qd7 {[%clk 0:28:42.8]} 18. b3 {[%clk 0:21:33.8]} 18... a5 {[%clk 0:26:24.1]} 19. Qe3 {[%clk 0:20:32.5]} 19... a4 {[%clk 0:26:00.5]} 20. d5 {[%clk 0:18:23.7]} 20... Nc8 {[%clk 0:21:48.5]} 21. dxc6 {[%clk 0:17:13.9]} 21... Qxc6 {[%clk 0:21:43.7]} 22. Bf3 {[%clk 0:17:09.3]} 22... Qa6 {[%clk 0:18:59.9]} 23. Nb5 {[%clk 0:15:58.5]} 23... Bd8 {[%clk 0:16:00]} 24. g5 {[%clk 0:13:10.1]} 24... Bb6 {[%clk 0:14:46.4]} 25. Qe5 {[%clk 0:12:07.4]} 25... Nh5 {[%clk 0:12:12.8]} 26. Rd7 {[%clk 0:11:39.8]} 26... f6 {[%clk 0:08:30.2]} 27. Qxe6+ {[%clk 0:09:56.1]} 27... Kh7 {[%clk 0:08:18.6]} 28. Qe4 {[%clk 0:07:22.9]} 28... fxg5 {[%clk 0:02:42.1]} 29. Bxh5 {[%clk 0:07:03.3]} 29... Bxf2+ {[%clk 0:02:30.6]} 30. Rxf2 {[%clk 0:06:51.5]} 30... Rxf4 {[%clk 0:02:19.2]} 31. Rxf4 {[%clk 0:05:24.2]} 31... gxf4 {[%clk 0:02:19.5]} 32. Qd4 {[%clk 0:04:53.3]} 32... Kh6 {[%clk 0:01:36.6]} 33. Qxf4+ {[%clk 0:03:13.5]} 33... Kh7 {[%clk 0:00:58.3]} 34. Qf7 {[%clk 0:02:50.3]} 34... Kh6 {[%clk 0:00:02.7]} 35. Bf3 {[%clk 0:02:45.9]} 35... Qb6+ {[%clk 0:00:03.1]} 36. Kg2 {[%clk 0:02:45.2]} 36... Qf6 {[%clk 0:00:04.2]} 37. Qxf6 {[%clk 0:02:42.4]} 37... gxf6 {[%clk 0:00:06.1]} 38. Bxb7 {[%clk 0:02:42.2]} 38... Rb8 {[%clk 0:00:07]} 39. Rc7 {[%clk 0:02:26.8]} 39... Nb6 {[%clk 0:00:06.8]} 40. c5 {[%clk 0:02:16.5]} 40... axb3 {[%clk 0:00:08.1]} 41. axb3 {[%clk 0:02:16.7]} 41... Na8 {[%clk 0:00:09.2]} 42. Rd7 {[%clk 0:02:10.9]} 42... Re8 {[%clk 0:00:07.6]} 43. Bxa8 {[%clk 0:02:09.8]} 43... Rxa8 {[%clk 0:00:08.5]} 44. c6 {[%clk 0:02:10.3]} 44... Ra2+ {[%clk 0:00:09.9]} 45. Kg3 {[%clk 0:02:08.6]} 45... Rb2 {[%clk 0:00:11.5]} 46. Rd3 {[%clk 0:02:08.6]} 46... Rc2 {[%clk 0:00:12.1]} 47. Rc3 {[%clk 0:02:09.5]} 1-0

[Event "Live Chess"]
[Site "Chess.com"]
[Date "2021.03.17"]
[Round "4"]
[White "MMSANCHEZ"]
[Black "SacrificeandCrush"]
[Result "1-0"]
[CurrentPosition "1r4k1/1pR5/pN1P3q/P4b2/3Q2p1/8/5PP1/5BK1 b - -"]
[Timezone "UTC"]
[ECO "A70"]
[ECOUrl "https://www.chess.com/openings/Benoni-Defense-Modern-Classical-Variation-7...Bg7"]
[UTCDate "2021.03.17"]
[UTCTime "03:00:43"]
[WhiteElo "2141"]
[BlackElo "1771"]
[TimeControl "2100+2"]
[Termination "MMSANCHEZ won by resignation"]
[StartTime "03:00:43"]
[EndDate "2021.03.17"]
[EndTime "03:57:27"]
[Link "https://www.chess.com/game/live/9689090057"]

1. d4 {[%clk 0:34:55.5]} 1... Nf6 {[%clk 0:34:49.1]} 2. c4 {[%clk 0:34:54.3]} 2... c5 {[%clk 0:34:46.5]} 3. d5 {[%clk 0:34:52.4]} 3... e6 {[%clk 0:34:46.8]} 4. Nc3 {[%clk 0:34:50.6]} 4... exd5 {[%clk 0:34:47.7]} 5. cxd5 {[%clk 0:34:52]} 5... d6 {[%clk 0:34:48.7]} 6. e4 {[%clk 0:34:45.2]} 6... g6 {[%clk 0:34:49.3]} 7. Nf3 {[%clk 0:34:46.1]} 7... Bg7 {[%clk 0:34:49.8]} 8. Nd2 {[%clk 0:34:45.7]} 8... O-O {[%clk 0:34:50]} 9. Be2 {[%clk 0:34:42.9]} 9... a6 {[%clk 0:34:50.1]} 10. a4 {[%clk 0:34:43.2]} 10... Nbd7 {[%clk 0:34:44.6]} 11. O-O {[%clk 0:34:41.3]} 11... Re8 {[%clk 0:34:45]} 12. h3 {[%clk 0:34:38.2]} 12... Rb8 {[%clk 0:34:45.4]} 13. a5 {[%clk 0:34:33.6]} 13... Qc7 {[%clk 0:33:49.7]} 14. Re1 {[%clk 0:34:26.1]} 14... Nf8 {[%clk 0:29:40.6]} 15. Bf1 {[%clk 0:34:20]} 15... h5 {[%clk 0:29:29.1]} 16. Nc4 {[%clk 0:34:16.6]} 16... N6d7 {[%clk 0:28:42]} 17. Bf4 {[%clk 0:33:41.4]} 17... Ne5 {[%clk 0:28:26.2]} 18. Nb6 {[%clk 0:33:29.1]} 18... Nfd7 {[%clk 0:28:12.2]} 19. Nca4 {[%clk 0:32:37.7]} 19... Nxb6 {[%clk 0:26:39.3]} 20. Nxb6 {[%clk 0:32:15.3]} 20... Nd7 {[%clk 0:26:17.1]} 21. Nc4 {[%clk 0:32:02]} 21... Ne5 {[%clk 0:26:10.1]} 22. Nb6 {[%clk 0:29:25.8]} 22... Nd7 {[%clk 0:25:41.2]} 23. Na4 {[%clk 0:29:25.1]} 23... Ne5 {[%clk 0:24:20.2]} 24. Qd2 {[%clk 0:28:46.5]} 24... Bd7 {[%clk 0:21:09.5]} 25. Nb6 {[%clk 0:27:12.9]} 25... Bc8 {[%clk 0:20:58.1]} 26. b4 {[%clk 0:25:58.1]} 26... cxb4 {[%clk 0:18:16.7]} 27. Qxb4 {[%clk 0:25:32.7]} 27... Qe7 {[%clk 0:18:07.5]} 28. Rac1 {[%clk 0:24:58.6]} 28... g5 {[%clk 0:17:15.1]} 29. Bh2 {[%clk 0:23:54.8]} 29... g4 {[%clk 0:13:07.1]} 30. hxg4 {[%clk 0:23:38.3]} 30... hxg4 {[%clk 0:12:52]} 31. Rc3 {[%clk 0:22:34.6]} 31... f5 {[%clk 0:09:43.5]} 32. Rec1 {[%clk 0:19:55.1]} 32... Bd7 {[%clk 0:06:53.5]} 33. Rc7 {[%clk 0:19:46.1]} 33... Red8 {[%clk 0:06:42.1]} 34. exf5 {[%clk 0:19:35.8]} 34... Qg5 {[%clk 0:05:02.6]} 35. Qxd6 {[%clk 0:18:05.5]} 35... Bxf5 {[%clk 0:04:12]} 36. Rxg7+ {[%clk 0:17:38.6]} 36... Qxg7 {[%clk 0:03:49.8]} 37. Qxe5 {[%clk 0:17:34.3]} 37... Qg6 {[%clk 0:01:59.1]} 38. Qd4 {[%clk 0:17:17.9]} 38... Qg5 {[%clk 0:00:54.6]} 39. Bf4 {[%clk 0:17:06.3]} 39... Qh4 {[%clk 0:00:44.1]} 40. Bxb8 {[%clk 0:16:36.7]} 40... Rxb8 {[%clk 0:00:44.7]} 41. Rc7 {[%clk 0:16:23.2]} 41... Qh6 {[%clk 0:00:27.2]} 42. d6 {[%clk 0:16:15]} 1-0